bitfinex/quotes_SOLUSD_20240703
["timestamp","ask_amount","ask_price","bid_price","bid_amount"]
[1720017970451,15.0835,142.74,142.68,7.0083]
[1720017970644,15.0835,142.74,142.67,7.009]
[1720017970843,15.0835,142.74,142.66,17.5235]
[1720017971026,15.0835,142.74,142.68,7.0084]
[1720017971346,15.0835,142.74,142.67,7.009]
[1720017972231,0.17,142.73,142.67,7.009]
[1720017973056,0.17,142.73,142.68,7.0086]
[1720017974139,0.17,142.73,142.66,17.5235]
[1720017974354,53.43,142.73,142.62,17.5279]
[1720017974569,53.43,142.73,142.63,7.0109]
[1720017974770,53.43,142.73,142.62,17.5279]
[1720017974962,53.43,142.73,142.62,24.5392]
[1720017975159,53.43,142.73,142.63,7.0108]
[1720017975364,53.43,142.73,142.64,7.0103]
[1720017975563,53.43,142.73,142.65,7.01]
[1720017976074,53.43,142.73,142.61,17.5293]
[1720017976476,53.43,142.73,142.62,7.0112]
[1720017977077,53.43,142.73,142.63,7.0111]
[1720017977574,53.43,142.73,142.64,7.0106]
[1720017982468,20.34,142.71,142.64,24.5368]
[1720017982668,20.34,142.71,142.65,1.28011396]
[1720017983362,20.34,142.71,142.64,17.5264]
[1720017983565,20.34,142.71,142.62,7.0114]
[1720017984464,20.34,142.71,142.61,24.5412]
[1720017984881,20.34,142.71,142.61,17.5293]
[1720017985678,20.34,142.71,142.61,24.5413]
[1720017985888,20.34,142.71,142.62,7.0114]
[1720017987371,20.34,142.71,142.63,1.40205645]
[1720017987559,20.34,142.71,142.61,17.5293]
[1720017987765,33.09,142.7,142.61,17.5293]
[1720017987970,20.17,142.69,142.61,17.5293]
[1720017988173,0.17,142.68,142.61,24.5413]
[1720017989877,16.56,142.65,142.61,24.5413]
[1720017990183,16.56,142.65,142.61,17.5293]
[1720017990587,16.56,142.66,142.61,34.0893]
[1720017990767,16.56,142.66,142.61,41.101]
[1720017990967,0.17,142.68,142.62,7.0115]
[1720017991174,16.56,142.66,142.62,7.0115]
[1720017991986,16.56,142.66,142.61,16.56]
[1720017992171,16.56,142.66,142.57,7.014]
[1720017992172,16.56,142.63,142.57,7.014]
[1720017992377,16.56,142.64,142.59,16.56]
[1720017992573,16.56,142.64,142.59,23.573]
[1720017992773,16.56,142.64,142.59,7.013]
[1720017993090,16.56,142.64,142.59,23.573]
[1720017993890,16.56,142.64,142.6,7.0126]
[1720017994066,16.7431,142.65,142.59,23.5729]
[1720017994262,16.56,142.64,142.59,23.5729]
[1720017994462,16.56,142.64,142.6,7.0126]
[1720017997096,16.56,142.64,142.6,24.544]
[1720017997294,16.56,142.64,142.59,16.56]
[1720017997496,16.56,142.6,142.58,7.0135]
[1720017999198,16.56,142.59,142.54,17.5387]
[1720017999502,16.7431,142.65,142.54,24.5539]
[1720017999503,16.56,142.58,142.54,24.5539]
[1720018000001,16.56,142.58,142.55,7.015]
[1720018000889,16.56,142.58,142.56,7.0145]
[1720018001395,16.56,142.59,142.56,24.5509]
[1720018002194,16.56,142.59,142.56,17.5364]
[1720018002389,16.56,142.59,142.55,7.0148]
[1720018003192,16.56,142.58,142.54,7.0152]
[1720018004300,16.56,142.57,142.53,17.5392]
[1720018004477,15.1078,142.59,142.53,24.5549]
[1720018004677,16.56,142.57,142.53,24.5549]
[1720018005607,16.56,142.57,142.54,7.0155]
[1720018009195,0.17,142.61,142.56,7.0143]
[1720018009402,16.56,142.6,142.56,7.0143]
[1720018012246,16.56,142.6,142.57,1.40252668]
[1720018012740,16.0773,142.63,142.57,1.40252668]
[1720018012941,29.62519952,142.66,142.58,24.97581342]
[1720018014044,16.56,142.62,142.57,41.1088]
[1720018015218,16.56,142.62,142.58,7.0134]
[1720018016236,16.56,142.61,142.58,1.40230639]
[1720018016441,88.5413,142.66,142.58,1.40230639]
[1720018016738,20.17,142.65,142.58,7.0135]
[1720018016922,16.56,142.62,142.58,7.0135]
[1720018017844,16.56,142.62,142.57,41.1087]
[1720018018027,16.56,142.61,142.57,24.5487]
[1720018018225,16.56,142.61,142.57,17.5349]
[1720018019145,16.56,142.61,142.57,24.5489]
[1720018021845,16.56,142.61,142.58,7.0136]
[1720018022750,16.56,142.61,142.57,24.5489]
[1720018022941,20.17,142.65,142.57,17.5349]
[1720018022942,16.56,142.6,142.57,17.5349]
[1720018023361,20.17,142.65,142.57,24.5489]
[1720018023362,16.56,142.61,142.57,24.5489]
[1720018025663,20.17,142.65,142.55,21.4923]
[1720018025664,16.56,142.59,142.55,21.4923]
[1720018025863,16.73,142.6,142.55,38.0523]
[1720018026040,16.56,142.6,142.55,45.067]
[1720018026346,16.56,142.6,142.56,7.0144]
[1720018026858,16.56,142.6,142.55,45.0672]
[1720018029772,16.56,142.58,142.54,24.5542]
[1720018030466,16.56,142.57,142.54,24.5542]
[1720018031349,16.56,142.57,142.54,17.5387]
[1720018031757,16.56,142.55,142.52,29.2805]
[1720018032158,16.56,142.55,142.53,7.0159]
[1720018032367,16.3285,142.6,142.53,7.0159]
[1720018032368,16.56,142.56,142.53,7.0159]
[1720018034468,16.56,142.55,142.51,7.9207]
[1720018034975,16.56,142.56,142.52,7.0164]
[1720018035470,16.56,142.55,142.51,7.9206]
[1720018035685,16.56,142.56,142.52,24.5578]
[1720018035973,16.56,142.56,142.52,17.5413]
[1720018036182,16.3285,142.6,142.54,17.5389]
[1720018036383,20.0,142.59,142.56,17.5363]
[1720018036675,36.56,142.59,142.56,17.5363]
[1720018036879,36.56,142.59,142.55,7.0148]
[1720018040178,16.56,142.58,142.53,41.1148]
[1720018040559,16.56,142.57,142.53,24.5548]
[1720018040880,16.56,142.57,142.52,23.5763]
[1720018041277,16.56,142.57,142.52,7.0163]
[1720018041755,22.68867956,142.63,142.51,0.9038]
[1720018041952,16.56,142.55,142.51,0.9038]
[1720018042184,16.56,142.56,142.51,17.4638]
[1720018042591,16.56,142.56,142.51,24.4805]
[1720018042893,16.56,142.56,142.51,17.4638]
[1720018043091,22.51867956,142.63,142.52,17.7112]
[1720018043272,16.56,142.58,142.53,16.56]
[1720018044012,16.56,142.58,142.54,7.0155]
[1720018044207,22.51867956,142.63,142.54,7.0155]
[1720018044504,16.56,142.58,142.54,7.0155]
[1720018044911,22.51867956,142.63,142.56,7.0145]
[1720018045205,16.56,142.6,142.56,17.5353]
[1720018045507,16.56,142.59,142.56,17.5353]
[1720018045711,16.56,142.59,142.54,23.575]
[1720018046211,16.56,142.59,142.55,7.0149]
[1720018048116,20.17,142.62,142.53,24.1679]
[1720018048276,16.56,142.59,142.55,7.0149]
[1720018048482,20.0,142.62,142.55,49.7632]
[1720018048706,20.0,142.62,142.56,7.0143]
[1720018048707,16.56,142.6,142.56,7.0143]
[1720018049577,16.56,142.59,142.55,33.2032]
[1720018050290,16.56,142.59,142.55,40.2181]
[1720018050911,16.56,142.58,142.55,33.2032]
[1720018051116,20.0,142.62,142.55,40.2181]
[1720018051413,16.56,142.59,142.55,40.2181]
[1720018051586,16.56,142.6,142.55,33.2032]
[1720018051920,20.0,142.62,142.56,7.0145]
[1720018051921,16.56,142.59,142.56,7.0145]
[1720018052720,16.56,142.6,142.56,7.0145]
[1720018053020,20.0,142.62,142.57,7.014]
[1720018053323,16.56,142.6,142.57,7.014]
[1720018053814,16.56,142.6,142.56,7.0143]
[1720018054019,20.0,142.65,142.57,24.5484]
[1720018054204,16.56,142.61,142.57,24.5484]
[1720018055293,20.0,142.65,142.57,24.5484]
[1720018055520,16.56,142.61,142.57,24.5484]
[1720018056091,16.56,142.6,142.57,24.5484]
[1720018057302,0.17,142.64,142.57,24.5484]
[1720018057303,16.56,142.61,142.57,24.5484]
[1720018057505,16.56,142.6,142.57,24.5484]
[1720018058319,16.56,142.6,142.57,17.5347]
[1720018060141,16.56,142.6,142.58,1.40246789]
[1720018060493,0.17,142.64,142.58,1.40246789]
[1720018060727,16.56,142.6,142.58,1.40246789]
[1720018061399,16.56,142.6,142.57,17.5347]
[1720018062104,16.56,142.6,142.56,7.0144]
[1720018062295,16.56,142.6,142.55,22.6806]
[1720018064129,16.56,142.6,142.55,15.6657]
[1720018064715,16.56,142.59,142.55,15.6657]
[1720018065022,0.17,142.64,142.55,22.6806]
[1720018065207,16.56,142.6,142.55,39.2406]
[1720018068210,16.56,142.6,142.56,7.0145]
[1720018068626,16.56,142.6,142.55,39.2406]
[1720018068824,0.17,142.64,142.56,41.1108]
[1720018069128,16.56,142.6,142.56,24.5508]
[1720018069635,16.56,142.6,142.56,17.5363]
[1720018070627,0.17,142.64,142.56,17.5363]
[1720018070833,16.56,142.6,142.56,17.5363]
[1720018072219,16.56,142.6,142.56,24.5508]
[1720018074234,16.56,142.6,142.56,17.5363]
[1720018074815,16.56,142.61,142.56,41.1105]
[1720018075232,16.56,142.6,142.56,24.5505]
[1720018076538,16.56,142.6,142.56,17.5363]
[1720018076940,16.56,142.6,142.56,24.5508]
[1720018077627,16.56,142.6,142.55,15.6657]
[1720018077934,16.56,142.6,142.55,39.2403]
[1720018078533,16.56,142.6,142.56,7.0144]
[1720018078726,16.56,142.6,142.56,17.536]
[1720018079626,16.56,142.6,142.57,7.0137]
[1720018080025,16.56,142.6,142.56,24.5505]
[1720018080831,16.56,142.6,142.55,39.2405]
[1720018081135,16.56,142.59,142.55,15.6657]
[1720018081322,16.56,142.6,142.55,39.2406]
[1720018085526,16.56,142.58,142.55,15.6657]
[1720018085727,16.56,142.58,142.53,30.205]
[1720018085919,0.17,142.64,142.53,6.629]
[1720018086120,16.56,142.57,142.53,6.629]
[1720018088442,0.34,142.64,142.54,7.0155]
[1720018088736,16.56,142.58,142.54,7.0155]
[1720018089844,16.56,142.58,142.54,23.5755]
[1720018090027,0.34,142.64,142.54,23.5755]
[1720018090224,16.56,142.58,142.54,7.0155]
[1720018090960,16.56,142.59,142.55,7.0148]
[1720018091113,27.32537532,142.65,142.55,16.56]
[1720018091315,16.56,142.6,142.55,23.5748]
[1720018091520,16.56,142.6,142.55,16.56]
[1720018091721,16.56,142.6,142.55,23.5749]
[1720018092541,27.32537532,142.65,142.56,17.5359]
[1720018092750,16.56,142.61,142.56,41.1103]
[1720018092947,16.56,142.6,142.56,24.5503]
[1720018093549,16.56,142.6,142.56,17.5359]
[1720018095654,16.56,142.6,142.55,23.5749]
[1720018097047,0.34,142.64,142.55,34.0974]
[1720018097349,16.56,142.62,142.57,23.5738]
[1720018097727,16.56,142.62,142.57,16.56]
[1720018098335,16.56,142.62,142.57,23.574]
[1720018099135,16.56,142.61,142.57,7.014]
[1720018099635,16.56,142.61,142.57,23.574]
[1720018100141,16.56,142.6,142.56,22.855]
[1720018100341,27.32537532,142.65,142.57,7.014]
[1720018100651,16.56,142.61,142.57,7.014]
[1720018101154,16.56,142.61,142.58,7.0131]
[1720018101363,16.56,142.62,142.56,15.8406]
[1720018101667,16.56,142.6,142.56,32.4006]
[1720018101836,16.56,142.6,142.56,39.4148]
[1720018102030,0.17,142.64,142.57,7.014]
[1720018102351,16.56,142.6,142.57,7.014]
[1720018103147,16.56,142.61,142.57,7.014]
[1720018103446,0.17,142.64,142.58,7.0135]
[1720018103650,16.56,142.61,142.57,24.5489]
[1720018103842,16.56,142.61,142.58,7.0135]
[1720018104158,16.56,142.61,142.57,24.549]
[1720018104367,16.56,142.61,142.58,7.0135]
[1720018104735,16.56,142.61,142.57,24.5488]
[1720018105745,0.17,142.64,142.56,22.8549]
[1720018106047,16.56,142.6,142.56,22.8549]
[1720018107437,16.56,142.6,142.57,7.014]
[1720018108033,0.34,142.64,142.56,15.8406]
[1720018108338,16.56,142.58,142.53,24.1682]
[1720018108537,16.56,142.58,142.54,7.0154]
[1720018108730,16.56,142.59,142.54,23.5754]
[1720018109236,16.56,142.59,142.55,7.015]
[1720018110354,16.56,142.6,142.56,7.0144]
[1720018110661,20.0,142.65,142.57,7.014]
[1720018113167,16.56,142.59,142.55,24.5525]
[1720018114335,16.56,142.59,142.55,40.1301]
[1720018114556,27.32519807,142.65,142.57,17.535]
[1720018114759,0.34,142.64,142.57,17.535]
[1720018114942,16.56,142.6,142.56,7.0144]
[1720018115578,16.56,142.6,142.55,45.8126]
[1720018115864,0.34,142.64,142.55,29.2526]
[1720018115865,16.56,142.59,142.55,29.2526]
[1720018116740,16.56,142.6,142.55,45.8126]
[1720018116974,0.34,142.64,142.55,45.8126]
[1720018117166,16.56,142.6,142.55,45.8126]
[1720018118362,0.34,142.64,142.55,22.2378]
[1720018118566,16.56,142.59,142.55,22.2378]
[1720018122455,16.56,142.56,142.52,22.7778]
[1720018123084,16.56,142.59,142.52,22.7778]
[1720018123288,16.56,142.56,142.52,22.7778]
[1720018123498,16.56,142.56,142.52,29.7943]
[1720018123990,16.56,142.56,142.52,22.7778]
[1720018124799,0.17,142.58,142.51,0.9038]
[1720018125005,16.56,142.54,142.51,0.9038]
[1720018127070,16.56,142.55,142.51,0.9038]
[1720018128601,16.56,142.55,142.51,7.9208]
[1720018130599,16.56,142.55,142.51,0.9038]
[1720018131102,16.56,142.54,142.51,0.9038]
[1720018132312,0.17,142.55,142.51,0.9038]
[1720018132612,16.56,142.53,142.51,0.9038]
[1720018133215,53.29,142.52,142.51,0.9038]
[1720018133384,53.46,142.52,142.51,0.9038]
[1720018133585,53.46,142.52,142.48,0.8515655]
[1720018134002,16.56,142.49,142.48,0.8515655]
[1720018134307,20.17,142.49,142.48,0.8515655]
[1720018134506,20.0,142.49,142.48,0.8515655]
[1720018134695,16.56,142.51,142.48,0.8515655]
[1720018134893,20.0,142.5,142.48,0.8515655]
[1720018136212,36.56,142.5,142.48,0.8515655]
[1720018136591,16.56,142.49,142.48,0.8515655]
[1720018137307,36.56,142.5,142.48,0.8515655]
[1720018137892,16.56,142.49,142.48,0.8515655]
[1720018142406,0.17,142.52,142.48,0.8515655]
[1720018142593,16.56,142.49,142.48,0.8515655]
[1720018142794,20.17,142.52,142.48,0.8515655]
[1720018142993,16.56,142.5,142.48,0.8515655]
[1720018143213,16.56,142.49,142.48,0.8515655]
[1720018144414,23.578,142.49,142.48,0.8515655]
[1720018144602,7.018,142.49,142.48,0.8515655]
[1720018147926,23.578,142.49,142.48,0.8515655]
[1720018149722,61.293,142.49,142.48,0.8515655]
[1720018154416,61.463,142.49,142.48,0.8515655]
[1720018155125,43.748,142.49,142.48,0.8515655]
[1720018157124,43.578,142.49,142.48,0.8515655]
[1720018157324,7.018,142.49,142.48,0.8515655]
[1720018158537,23.578,142.49,142.48,0.8515655]
[1720018159230,7.018,142.49,142.48,0.8515655]
[1720018159936,23.578,142.49,142.48,0.8515655]
[1720018162003,41.123,142.49,142.48,0.8515655]
[1720018162308,61.123,142.49,142.48,0.8515655]
[1720018162840,43.578,142.49,142.48,0.8515655]
[1720018165508,20.0,142.49,142.48,0.8515655]
[1720018165710,27.018,142.49,142.48,0.8515655]
[1720018165909,23.578,142.49,142.48,0.8515655]
[1720018168737,7.018,142.49,142.48,0.8515655]
[1720018168930,23.578,142.49,142.48,0.8515655]
[1720018169840,7.018,142.49,142.48,0.8515655]
[1720018170219,23.578,142.49,142.48,0.8515655]
[1720018171122,23.748,142.49,142.48,0.8515655]
[1720018171638,43.748,142.49,142.48,0.8515655]
[1720018171941,43.918,142.49,142.48,0.8515655]
[1720018174742,43.748,142.49,142.48,0.8515655]
[1720018181727,27.018,142.49,142.48,0.8515655]
[1720018182349,7.018,142.49,142.48,0.8515655]
[1720018183121,23.578,142.49,142.48,0.8515655]
[1720018183323,7.018,142.49,142.48,0.8515655]
[1720018205083,41.123,142.49,142.48,0.8515655]
[1720018207984,7.0177,142.5,142.48,0.8515655]
[1720018208158,23.5777,142.5,142.48,0.8515655]
[1720018208361,7.018,142.49,142.48,0.8515655]
[1720018211784,23.578,142.49,142.48,0.8515655]
[1720018212570,7.018,142.49,142.48,0.8515655]
[1720018212791,23.578,142.49,142.48,0.8515655]
[1720018213687,7.018,142.49,142.48,0.8515655]
[1720018221194,23.8908059,142.52,142.48,0.8515655]
[1720018221371,20.0,142.51,142.48,17.4115655]
[1720018221800,20.0,142.51,142.48,0.8515655]
[1720018222192,7.018,142.49,142.48,0.8515655]
[1720018223502,7.0166,142.52,142.48,24.4297655]
[1720018223707,5.52216879,142.6,142.51,16.56]
[1720018223879,7.0145,142.57,142.55,16.56]
[1720018224587,7.0145,142.56,142.55,16.56]
[1720018224989,17.5323,142.6,142.55,16.56]
[1720018225174,7.0136,142.58,142.55,16.56]
[1720018225373,17.5323,142.6,142.55,16.56]
[1720018225374,7.0141,142.57,142.55,16.56]
[1720018230288,7.0133,142.59,142.55,23.575]
[1720018230494,7.0133,142.59,142.56,16.56]
[1720018231391,16.56,142.61,142.56,16.56]
[1720018231701,7.0139,142.58,142.56,16.56]
[1720018233304,7.0137,142.58,142.56,16.56]
[1720018233491,20.0,142.6,142.56,16.56]
[1720018233792,7.0135,142.59,142.56,16.56]
[1720018234206,7.0136,142.58,142.56,16.56]
[1720018234381,7.0132,142.59,142.56,16.56]
[1720018234707,7.0132,142.59,142.57,16.56]
[1720018235078,7.0132,142.59,142.56,16.56]
[1720018235378,7.0148,142.56,142.54,23.2833]
[1720018235581,7.015,142.55,142.54,23.2833]
[1720018235794,7.015,142.55,142.54,16.6428]
[1720018235985,7.0159,142.54,142.5,28.8688]
[1720018236192,7.0152,142.55,142.53,16.56]
[1720018236907,7.0147,142.56,142.53,16.56]
[1720018237097,7.0142,142.57,142.54,16.56]
[1720018237295,7.0136,142.58,142.55,16.56]
[1720018237599,20.0,142.6,142.56,16.56]
[1720018237903,7.0133,142.59,142.56,16.56]
[1720018238503,27.0127,142.6,142.56,23.5745]
[1720018239382,7.0131,142.59,142.56,23.5745]
[1720018239598,27.0127,142.6,142.56,23.5745]
[1720018240184,7.0131,142.59,142.56,23.5745]
[1720018240406,20.0,142.6,142.56,16.56]
[1720018240701,7.0138,142.58,142.55,16.56]
[1720018241479,20.0,142.6,142.55,31.728]
[1720018241701,7.0127,142.6,142.57,16.56]
[1720018241894,20.0,142.61,142.55,28.4985]
[1720018241895,7.0132,142.59,142.55,28.4985]
[1720018242090,20.0,142.63,142.55,28.4985]
[1720018242302,7.0132,142.59,142.55,28.4985]
[1720018243109,7.0136,142.58,142.55,21.4837]
[1720018244487,16.56,142.6,142.55,21.4837]
[1720018244488,7.0128,142.6,142.56,7.0145]
[1720018244998,7.0132,142.59,142.55,46.0362]
[1720018247488,7.0122,142.61,142.57,7.0139]
[1720018247704,7.0122,142.61,142.57,23.5739]
[1720018248210,20.0,142.63,142.58,16.56]
[1720018248397,7.0111,142.63,142.59,23.5727]
[1720018248613,7.0111,142.63,142.59,41.1042]
[1720018248789,7.0116,142.62,142.59,41.1042]
[1720018249194,23.89204482,142.64,142.59,34.0915]
[1720018249391,7.0116,142.62,142.59,41.1045]
[1720018250004,7.0122,142.61,142.56,17.5353]
[1720018250204,7.0129,142.6,142.56,24.5497]
[1720018250409,23.5723,142.61,142.57,7.014]
[1720018250589,7.0123,142.61,142.57,23.574]
[1720018251182,7.0126,142.6,142.57,16.56]
[1720018251812,7.0126,142.6,142.56,24.5498]
[1720018251997,7.0139,142.58,142.55,21.4837]
[1720018252200,7.0127,142.6,142.56,23.5744]
[1720018252401,7.0123,142.61,142.57,7.014]
[1720018252609,23.5723,142.61,142.57,7.014]
[1720018252994,7.0123,142.61,142.57,23.574]
[1720018254315,7.0127,142.6,142.57,16.56]
[1720018254819,7.0127,142.6,142.57,23.574]
[1720018255132,7.0123,142.61,142.57,23.574]
[1720018255324,16.56,142.62,142.57,16.56]
[1720018255526,7.0127,142.6,142.57,16.56]
[1720018256421,7.0127,142.6,142.57,23.574]
[1720018256606,7.0123,142.61,142.57,23.574]
[1720018257236,7.0123,142.61,142.58,16.56]
[1720018257912,7.0123,142.61,142.57,7.014]
[1720018258108,7.0123,142.61,142.58,16.56]
[1720018258715,7.0123,142.61,142.57,7.014]
[1720018258919,7.0123,142.61,142.58,16.56]
[1720018259618,16.56,142.63,142.58,23.5732]
[1720018259804,23.89204482,142.64,142.58,23.5732]
[1720018260006,20.0,142.63,142.58,23.5732]
[1720018260319,7.0119,142.62,142.58,23.5732]
[1720018260709,7.0122,142.61,142.58,16.56]
[1720018261120,7.0119,142.62,142.58,23.5735]
[1720018261421,7.0122,142.61,142.58,23.5735]
[1720018262215,7.0122,142.61,142.58,16.56]
[1720018263504,7.0122,142.61,142.58,23.5735]
[1720018263704,7.0116,142.62,142.58,23.5735]
[1720018264826,7.0116,142.62,142.59,16.56]
[1720018265413,7.0121,142.61,142.59,16.56]
[1720018265925,36.56,142.63,142.55,39.0213]
[1720018266230,36.56,142.63,142.58,16.56]
[1720018266231,54.0879,142.63,142.58,16.56]
[1720018266446,7.0129,142.6,142.58,16.56]
[1720018269421,7.0123,142.61,142.58,16.56]
[1720018270344,7.0123,142.61,142.58,23.5735]
[1720018270822,7.0118,142.62,142.58,23.5735]
[1720018271422,7.0122,142.61,142.57,7.0139]
[1720018271618,7.0122,142.61,142.58,16.56]
[1720018272535,7.0127,142.6,142.57,7.0139]
[1720018272742,7.0127,142.6,142.56,34.0952]
[1720018273037,7.0127,142.6,142.56,17.5352]
[1720018273242,16.56,142.62,142.57,7.014]
[1720018273243,7.0123,142.61,142.57,7.014]
[1720018273423,7.0123,142.61,142.58,7.0135]
[1720018273743,7.0123,142.61,142.57,23.5739]
[1720018273940,7.0116,142.62,142.58,41.1072]
[1720018275435,36.56,142.63,142.6,16.56]
[1720018275436,20.0,142.63,142.6,16.56]
[1720018275618,17.5223,142.68,142.61,17.96222697]
[1720018275619,16.56,142.66,142.61,17.96222697]
[1720018275827,16.56,142.66,142.61,16.56]
[1720018275828,7.0107,142.64,142.61,16.56]
[1720018276020,7.0107,142.64,142.61,17.96221735]
[1720018276944,7.0107,142.64,142.6,24.5437]
[1720018277123,7.0107,142.64,142.6,41.1037]
[1720018277446,7.0107,142.64,142.61,16.56]
[1720018278026,7.0103,142.65,142.62,16.56]
[1720018279747,7.0107,142.64,142.62,16.56]
[1720018280636,7.0107,142.64,142.61,16.56]
[1720018280825,16.56,142.65,142.59,15.5064]
[1720018281142,7.0114,142.63,142.59,39.0793]
[1720018281351,7.0125,142.61,142.57,24.5479]
[1720018281647,7.0118,142.62,142.58,23.5735]
[1720018281852,16.56,142.63,142.57,17.534]
[1720018282026,17.5266,142.64,142.56,6.2294]
[1720018282027,16.56,142.61,142.56,6.2294]
[1720018282223,16.56,142.6,142.55,15.6884]
[1720018282449,16.56,142.6,142.53,17.5394]
[1720018282641,16.56,142.59,142.53,17.5394]
[1720018282954,23.573,142.6,142.56,7.0144]
[1720018283538,7.0123,142.61,142.57,7.014]
[1720018283848,39.3773,142.64,142.57,7.014]
[1720018283849,16.56,142.64,142.59,23.5726]
[1720018284048,20.0,142.63,142.6,7.0126]
[1720018284534,27.0111,142.63,142.6,23.5726]
[1720018284848,27.0111,142.63,142.6,16.56]
[1720018285057,27.0111,142.63,142.59,41.1055]
[1720018285637,7.0111,142.63,142.59,41.1055]
[1720018285944,7.0111,142.63,142.6,0.790408]
[1720018286551,7.0111,142.63,142.6,16.56]
[1720018287439,7.0118,142.62,142.6,16.56]
[1720018287638,7.0118,142.62,142.59,16.56]
[1720018288556,7.0118,142.62,142.56,34.0222]
[1720018288557,7.0126,142.6,142.56,40.8663]
[1720018288741,7.0126,142.6,142.58,16.56]
[1720018288941,7.0126,142.6,142.57,16.56]
[1720018289259,7.0126,142.6,142.56,40.8663]
[1720018289260,16.56,142.61,142.56,16.3168]
[1720018289554,7.0139,142.58,142.56,16.56]
[1720018289734,7.014,142.57,142.55,16.56]
[1720018289937,7.014,142.57,142.54,16.56]
[1720018290130,7.014,142.57,142.53,24.555]
[1720018290332,7.0146,142.56,142.52,22.6208]
[1720018290549,17.533,142.59,142.53,23.576]
[1720018290550,7.0141,142.57,142.53,23.576]
[1720018290827,7.0141,142.57,142.54,16.56]
[1720018291031,16.56,142.59,142.54,16.56]
[1720018291032,7.0137,142.58,142.54,16.56]
[1720018291268,7.0132,142.59,142.54,16.56]
[1720018291557,23.5732,142.59,142.55,1.40282319]
[1720018291753,23.5732,142.59,142.55,7.015]
[1720018293246,7.0136,142.58,142.54,41.1138]
[1720018293959,23.5731,142.59,142.55,7.015]
[1720018294146,16.56,142.6,142.56,7.0142]
[1720018294347,7.0126,142.6,142.56,7.0142]
[1720018295358,7.0126,142.6,142.55,23.5748]
[1720018295558,16.56,142.6,142.54,24.5538]
[1720018295871,7.0136,142.58,142.55,16.56]
[1720018296238,7.0133,142.59,142.55,16.56]
[1720018297355,7.0133,142.59,142.54,41.1138]
[1720018298071,7.0136,142.58,142.54,41.1138]
[1720018298674,23.5732,142.59,142.55,7.015]
[1720018299170,23.5732,142.59,142.54,34.0984]
[1720018299171,7.0136,142.58,142.54,24.5538]
[1720018299654,23.5736,142.58,142.54,24.5538]
[1720018300048,7.0136,142.58,142.54,41.1138]
[1720018300365,23.5732,142.59,142.55,7.0149]
[1720018301260,15.6423,142.62,142.55,35.0736]
[1720018301460,27.0121,142.61,142.58,17.5338]
[1720018301665,20.0,142.61,142.58,24.5473]
[1720018301874,7.0131,142.59,142.55,7.0147]